bitfinex/quotes_ETHUSD_20240716
["timestamp","ask_amount","ask_price","bid_price","bid_amount"]
[1721133186335,2.91538,3430.1,3429.0,3.135801]
[1721133186336,2.91558,3429.9,3429.0,3.135801]
[1721133186643,2.91558,3429.9,3428.8,2.91641]
[1721133186644,0.05839352,3429.8,3428.8,2.91641]
[1721133186944,0.05839352,3429.8,3428.9,2.91638]
[1721133186945,2.91578,3429.7,3428.9,2.91638]
[1721133187110,2.91578,3429.7,3428.6,0.1476396]
[1721133187111,2.9158,3429.6,3428.8,2.91647]
[1721133187438,2.91596,3429.4,3428.6,3.0642696]
[1721133187602,0.58893535,3429.9,3428.6,3.0642096]
[1721133187603,2.91576,3429.7,3428.6,3.0642096]
[1721133187802,2.91581,3429.6,3428.7,3.22292096]
[1721133188008,2.91589,3429.5,3428.7,3.22292096]
[1721133188547,2.9154,3430.1,3429.0,2.9163]
[1721133188716,3.0,3430.0,3429.2,2.9161]
[1721133189124,3.0,3430.0,3429.3,2.91602]
[1721133189451,11.373,3430.9,3429.3,3.747842]
[1721133189452,2.91544,3430.1,3429.3,3.747842]
[1721133189745,2.91544,3430.1,3429.0,5.40236]
[1721133189746,5.91547,3430.0,3429.0,5.40236]
[1721133189950,5.91547,3430.0,3429.0,2.91626]
[1721133190155,3.0,3430.0,3429.2,2.91607]
[1721133190354,3.0,3430.0,3429.0,2.91626]
[1721133190528,5.91548,3430.0,3429.1,2.91614]
[1721133190860,2.97396352,3429.9,3429.1,2.91614]
[1721133191009,3.883085,3430.0,3429.2,2.91612]
[1721133191215,5.91545,3430.0,3429.2,2.91612]
[1721133191709,2.91567,3429.8,3429.0,2.91625]
[1721133191915,2.91572,3429.7,3429.0,2.91625]
[1721133192726,2.9159,3429.5,3428.7,0.30642096]
[1721133192936,2.97435352,3429.4,3428.7,0.30642096]
[1721133193114,2.97435352,3429.4,3428.6,3.0642296]
[1721133193315,2.91607,3429.3,3428.6,0.1476396]
[1721133193557,0.05839352,3429.2,3428.6,0.1476396]
[1721133193730,2.9164,3428.9,3428.6,0.1476396]
[1721133193938,2.91655,3428.7,3428.6,0.1476396]
[1721133194144,3.56409187,3428.7,3428.6,0.1476396]
[1721133194622,3.50569835,3428.7,3428.6,0.1476396]
[1721133195075,9.55464187,3428.7,3428.6,0.1476396]
[1721133195297,10.10464187,3428.7,3428.6,0.1476396]
[1721133195772,13.10464187,3428.7,3428.6,0.1476396]
[1721133196677,16.02119187,3428.7,3428.6,0.1476396]
[1721133196968,13.10464187,3428.7,3428.6,0.1476396]
[1721133197466,16.02119187,3428.7,3428.6,0.1476396]
[1721133198027,13.10464187,3428.7,3428.6,0.1476396]
[1721133198255,16.02119187,3428.7,3428.6,0.1476396]
[1721133199420,18.93774187,3428.7,3428.6,0.1476396]
[1721133200350,18.93774187,3428.7,3426.3,2.4741]
[1721133200351,2.91781,3427.3,3426.3,2.4741]
[1721133200547,0.05839352,3427.2,3426.3,2.4741]
[1721133200750,2.918,3427.0,3426.3,2.4741]
[1721133200976,0.05839352,3427.2,3426.3,2.4741]
[1721133200977,2.91771,3427.4,3426.5,2.91842]
[1721133201122,2.91786,3427.2,3426.3,5.39268]
[1721133201323,2.91783,3427.2,3426.4,2.91845]
[1721133201547,3.0,3427.8,3426.9,2.91806]
[1721133201769,3.0,3427.7,3426.9,2.91806]
[1721133202131,5.91741,3427.7,3426.8,2.9181]
[1721133202460,2.91766,3427.4,3426.7,2.91824]
[1721133202771,2.91766,3427.4,3426.6,2.91833]
[1721133203072,2.97605352,3427.4,3426.7,2.91824]
[1721133203219,2.9178,3427.3,3426.3,5.39267]
[1721133203426,2.97625352,3427.2,3426.3,2.4741]
[1721133203750,2.97625352,3427.2,3426.3,2.91854]
[1721133204092,2.91793,3427.1,3426.1,2.9187]
[1721133204278,3.85887279,3427.3,3426.5,2.9184]
[1721133204428,3.0,3427.7,3426.7,2.91821]
[1721133204429,5.9915,3427.6,3426.7,2.91821]
[1721133204628,5.9915,3427.6,3426.5,2.9184]
[1721133204629,3.0,3427.7,3427.1,2.91784]
[1721133204830,3.0,3427.5,3425.9,2.91892]
[1721133205026,0.05839352,3427.6,3426.6,2.9183]
[1721133205446,5.91746,3427.7,3426.8,2.91815]
[1721133205447,3.0,3427.7,3426.8,2.91815]
[1721133205589,2.91761,3427.5,3426.0,2.91878]
[1721133205788,3.05839352,3427.7,3425.8,2.336]
[1721133205789,2.91785,3427.2,3426.4,2.91849]
[1721133205987,2.91785,3427.2,3426.3,2.91855]
[1721133205988,2.91751,3427.6,3426.5,2.91835]
[1721133206192,3.0,3427.5,3426.8,2.91816]
[1721133206491,0.91558035,3427.5,3426.8,2.91816]
[1721133207165,3.0,3427.7,3427.1,2.9179]
[1721133207360,3.0,3427.7,3426.1,2.91876]
[1721133207361,2.91751,3427.6,3426.7,2.91819]
[1721133207696,3.0,3427.7,3426.2,2.91863]
[1721133207926,3.0,3427.7,3427.1,5.83568]
[1721133208064,3.0,3427.7,3427.1,2.91786]
[1721133208270,3.0,3427.7,3427.2,2.91783]
[1721133209085,3.909715,3427.7,3427.2,2.91783]
[1721133209295,3.0,3427.7,3427.2,2.91783]
[1721133209591,3.0,3427.7,3427.3,2.91767]
[1721133209957,3.18,3427.8,3427.5,2.91756]
[1721133210159,7.37,3428.5,3427.7,2.9174]
[1721133210469,2.91663,3428.7,3427.9,2.91721]
[1721133210795,2.91684,3428.4,3427.5,2.91751]
[1721133210951,2.97523352,3428.4,3426.9,5.38174]
[1721133211159,2.97523352,3428.4,3427.5,2.91756]
[1721133211492,5.99075,3428.5,3427.6,2.91748]
[1721133211686,5.99075,3428.5,3427.7,2.91739]
[1721133211862,0.55057279,3428.4,3427.7,2.91739]
[1721133212192,2.91707,3428.1,3427.1,2.91785]
[1721133212399,2.91725,3427.9,3427.0,2.91795]
[1721133212563,0.05839352,3427.8,3427.1,2.91791]
[1721133212765,0.05839352,3427.7,3427.1,2.91791]
[1721133213158,2.91724,3427.9,3427.0,5.83588]
[1721133213389,0.05839352,3427.8,3426.4,2.3497]
[1721133213601,2.91767,3427.4,3426.4,2.91843]
[1721133213905,2.91767,3427.4,3426.5,2.91838]
[1721133213906,0.05839352,3427.3,3426.5,2.91838]
[1721133214060,0.05839352,3427.2,3426.3,2.91856]
[1721133214656,2.97627352,3427.2,3426.0,2.91881]
[1721133214872,3.87307587,3427.2,3426.3,2.91854]
[1721133215066,3.81468235,3427.2,3426.4,2.9185]
[1721133215269,0.89680235,3427.2,3426.4,2.9185]
[1721133215507,3.81463235,3427.2,3426.4,2.9185]
[1721133215905,3.81463235,3427.2,3426.4,2.91849]
[1721133216119,0.47981144,3427.1,3426.4,2.91849]
[1721133216413,0.53820496,3427.1,3426.4,2.91849]
[1721133216610,0.53820496,3427.1,3426.1,2.91873]
[1721133216811,2.91811,3426.9,3425.9,2.91891]
[1721133217013,2.97657352,3426.8,3425.9,2.91891]
[1721133217211,2.97666352,3426.7,3425.7,2.9191]
[1721133217512,2.91839,3426.6,3425.7,2.9191]
[1721133217712,0.05839352,3426.5,3425.7,2.9191]
[1721133218012,2.91835,3426.6,3425.8,2.91897]
[1721133218323,0.05839352,3426.7,3425.8,2.91897]
[1721133218493,2.97671352,3426.7,3425.8,2.91897]
[1721133219400,2.97671352,3426.7,3425.6,2.91918]
[1721133219608,2.91843,3426.5,3425.6,2.91918]
[1721133219776,0.05839352,3426.4,3425.6,2.91918]
[1721133219981,0.05839352,3426.4,3425.4,2.91934]
[1721133219982,2.97692352,3426.4,3425.4,2.91934]
[1721133220218,2.97691352,3426.4,3425.2,0.1476396]
[1721133220511,2.91873,3426.2,3425.3,2.91944]
[1721133220715,2.91873,3426.2,3425.4,2.91934]
[1721133221113,0.29767135,3426.6,3425.2,0.1476396]
[1721133221114,3.21604135,3426.6,3425.7,2.91911]
[1721133221316,2.91868,3426.2,3425.2,0.1476396]
[1721133221503,0.05839352,3426.1,3425.2,0.1476396]
[1721133221703,0.29770735,3426.0,3425.2,3.0671696]
[1721133222017,2.97739352,3425.9,3425.2,0.1476396]
[1721133222223,0.05839352,3425.8,3425.2,0.1476396]
[1721133222380,2.91945,3425.3,3425.2,0.1476396]
[1721133223622,5.8389,3425.3,3425.2,0.1476396]
[1721133223779,3.50334,3425.3,3425.2,0.1476396]
[1721133223986,6.48118352,3425.3,3425.2,0.1476396]
[1721133224186,6.48118352,3425.3,3423.6,2.92089]
[1721133224187,5.9941,3424.6,3423.6,2.92089]
[1721133224424,5.9941,3424.6,3422.8,2.92157]
[1721133224425,2.92036,3424.3,3422.8,2.92157]
[1721133224716,2.92036,3424.3,3422.7,2.3381]
[1721133224717,2.92036,3424.3,3423.5,2.92091]
[1721133224920,0.05839352,3424.2,3422.9,1.255967]
[1721133225221,0.05839352,3424.2,3422.7,2.3381]
[1721133225222,2.92053,3424.1,3423.1,2.92125]
[1721133225388,0.05839352,3424.0,3422.7,2.3381]
[1721133225589,0.05839352,3424.0,3423.1,2.92132]
[1721133225796,0.05839352,3424.1,3423.3,2.92114]
[1721133225987,0.49501644,3424.5,3423.2,0.05842373]
[1721133226327,0.49501644,3424.5,3422.2,7.077]
[1721133226328,0.58389,3425.3,3424.3,2.9203]
[1721133226484,3.0,3425.5,3424.7,2.91992]
[1721133226692,3.18,3425.8,3424.7,2.91992]
[1721133226693,3.0,3425.4,3424.7,2.91992]
[1721133227221,3.18,3425.8,3425.0,2.91966]
[1721133227526,3.18,3425.8,3424.8,2.91987]
[1721133227726,3.18,3425.8,3425.1,2.91961]
[1721133227888,3.498,3425.8,3425.1,2.91961]
[1721133228089,5.99276,3426.2,3425.1,2.91961]
[1721133228289,2.91893,3426.0,3424.9,2.91978]
[1721133228525,2.91893,3426.0,3425.0,2.91969]
[1721133228821,3.0,3425.9,3425.1,2.91961]
[1721133229025,7.37,3426.3,3425.1,2.91961]
[1721133229026,5.97722352,3426.1,3425.1,2.91961]
[1721133229249,2.91893,3426.0,3424.9,5.31728]
[1721133229388,3.0,3425.9,3424.8,2.91985]
[1721133229592,3.0,3426.1,3424.9,2.91978]
[1721133229817,7.37,3426.7,3425.5,2.91926]
[1721133229818,2.91835,3426.6,3425.5,2.91926]
[1721133230033,2.97682352,3426.5,3425.5,2.91926]
[1721133230242,6.51620235,3426.4,3425.5,2.91926]
[1721133230587,6.51620235,3426.4,3424.5,7.3]
[1721133230588,3.59768235,3426.4,3425.8,2.919]
[1721133230706,3.0,3426.7,3425.8,2.919]
[1721133231026,3.18,3426.8,3425.8,2.919]
[1721133231230,2.91826,3426.7,3425.8,2.919]
[1721133231402,2.91835,3426.6,3425.7,2.9191]
[1721133231607,3.18,3426.8,3425.7,2.9191]
[1721133231821,3.18,3426.8,3425.2,5.17569]
[1721133231822,2.91783,3427.2,3426.2,2.91866]
[1721133232018,2.91783,3427.2,3426.2,2.91862]
[1721133232205,2.91783,3427.2,3426.3,2.91859]
[1721133232417,2.91768,3427.4,3425.2,12.47569]
[1721133232731,2.91783,3427.2,3426.3,2.91858]
[1721133232931,0.599183,3427.1,3426.3,2.91858]
[1721133233228,0.599183,3427.1,3426.0,2.91878]
[1721133233229,0.05839352,3427.0,3426.0,2.91878]
[1721133233446,0.05839352,3427.0,3425.3,7.3]
[1721133233447,5.4886,3426.9,3425.3,7.3]
[1721133233599,5.4886,3426.9,3425.2,2.91948]
[1721133233600,2.91831,3426.7,3425.2,2.91948]
[1721133233794,2.91848,3426.5,3425.6,2.91914]
[1721133234007,2.4146,3426.9,3425.8,2.91898]
[1721133234008,0.77743079,3426.4,3425.8,2.91898]
[1721133234204,5.97661352,3426.8,3425.8,2.91898]
[1721133234449,3.074,3426.6,3424.9,2.4697]
[1721133234729,3.0,3426.8,3424.9,5.38942]
[1721133234730,2.91884,3426.1,3424.9,5.38942]
[1721133234916,0.05839352,3426.0,3425.1,2.91954]
[1721133235098,2.91871,3426.2,3425.3,2.91945]
[1721133235294,0.599271,3426.1,3425.1,2.91954]
[1721133235638,3.518041,3426.1,3425.4,2.91935]
[1721133235803,2.91877,3426.1,3425.4,2.91935]
[1721133236206,2.91877,3426.1,3425.2,2.91946]
[1721133236501,2.91877,3426.1,3425.1,2.91959]
[1721133236502,2.91877,3426.1,3425.4,2.91936]
[1721133236703,2.91871,3426.2,3425.4,2.91936]
[1721133237139,2.91854,3426.4,3425.4,2.91936]
[1721133237452,0.891089,3426.3,3425.4,2.91936]
[1721133237605,5.91844,3426.5,3425.6,2.91918]
[1721133238229,2.91852,3426.4,3425.6,2.91918]
[1721133238433,2.91874,3426.2,3425.3,2.91945]
[1721133238633,2.91874,3426.2,3425.4,2.91936]
[1721133238836,0.58957735,3426.1,3425.4,2.91936]
[1721133239134,3.50835735,3426.1,3425.4,2.91936]
[1721133239335,0.58957735,3426.1,3425.4,2.91936]
[1721133239534,3.0,3426.5,3425.6,2.91914]
[1721133239744,2.91811,3426.9,3425.9,2.91893]
[1721133239745,3.0,3426.6,3425.9,2.91893]
[1721133240047,2.91827,3426.7,3425.8,2.91902]
[1721133240248,2.91843,3426.5,3425.1,2.91956]
[1721133240414,0.88950935,3426.4,3425.7,2.91905]
[1721133240748,3.0,3426.6,3426.0,5.83756]
[1721133240900,5.97642352,3427.0,3426.0,5.83756]
[1721133241104,3.0,3427.0,3426.2,2.91863]
[1721133241347,3.0,3427.1,3426.2,2.91863]
[1721133241651,0.59179,3427.0,3426.2,2.91863]
[1721133242303,2.9181,3426.9,3426.0,2.91878]
[1721133242628,2.97656352,3426.8,3425.7,2.91909]
[1721133242941,0.05839352,3426.7,3425.7,2.91909]
[1721133243154,0.05839352,3426.7,3425.8,2.91897]
[1721133243368,0.59765635,3426.6,3425.8,2.91897]
[1721133243525,0.05839352,3426.7,3425.4,2.2556]
[1721133243526,3.0,3426.8,3426.1,2.91874]
[1721133243721,2.91798,3427.1,3426.1,2.91874]
[1721133243722,3.0,3427.0,3426.1,2.91874]
[1721133244063,10.55,3427.8,3426.9,2.91808]
[1721133244221,2.9176,3427.5,3426.5,2.91837]
[1721133244421,2.91768,3427.4,3426.3,2.91859]
[1721133244655,2.91784,3427.2,3426.4,2.9185]
[1721133244830,2.97623352,3427.2,3426.4,2.9185]
[1721133245030,0.05839352,3427.2,3426.4,2.9185]
[1721133245231,0.05839352,3427.3,3426.4,2.9185]
[1721133245668,2.91788,3427.2,3426.4,2.9185]
[1721133245847,3.81474035,3427.1,3426.3,2.91859]
[1721133246058,0.05839352,3427.0,3426.3,2.91859]
[1721133246388,0.89681035,3427.1,3426.3,2.91859]
[1721133246576,2.91796,3427.1,3426.3,2.91859]
[1721133246773,2.97639352,3427.0,3426.1,2.91875]
[1721133247162,2.97639352,3427.0,3426.2,2.91868]
[1721133247485,2.97639352,3427.0,3425.9,2.9189]
[1721133247651,2.97639352,3427.0,3426.1,2.9187]
[1721133248004,0.58943535,3426.9,3426.2,2.91868]
[1721133248152,0.58943535,3426.9,3426.1,2.9187]
[1721133248153,0.05839352,3426.8,3426.0,2.91883]
[1721133248356,0.05839352,3426.8,3426.1,2.91877]
[1721133248566,0.05839352,3426.8,3426.0,2.91883]
[1721133248748,0.05839352,3427.0,3426.4,2.9185]
[1721133248989,3.0,3427.4,3426.5,2.91842]
[1721133249201,3.0,3427.4,3426.6,2.91828]
[1721133249355,5.91763,3427.5,3426.6,5.83656]
[1721133249555,3.0,3427.5,3426.6,5.83656]
[1721133249905,2.91767,3427.4,3426.4,2.91847]
[1721133250055,6.516987,3427.3,3426.4,2.91847]
[1721133250451,6.516987,3427.3,3426.4,5.83691]
[1721133250892,6.516987,3427.3,3426.5,2.91842]
[1721133251255,3.599167,3427.3,3426.5,2.91842]
[1721133251498,3.18,3427.8,3427.0,2.91795]
[1721133251698,3.18,3427.8,3427.3,2.91774]
[1721133251861,3.18,3427.8,3427.6,2.91744]
[1721133252198,1.52129523,3428.8,3426.6,2.2634]
[1721133252199,1.21701329,3429.0,3428.1,2.91704]
[1721133252416,1.21701329,3429.1,3428.2,2.91697]
[1721133252693,1.21701329,3429.1,3428.6,2.91658]
[1721133252694,0.59183085,3429.1,3428.6,2.91658]
[1721133252863,0.59183085,3429.1,3428.4,2.91674]
[1721133253049,0.59183085,3429.1,3428.5,2.9167]
[1721133253281,0.59183085,3429.1,3428.6,2.91663]
[1721133253464,0.59183085,3429.1,3428.3,5.26897]
[1721133253465,0.59183085,3429.1,3428.3,5.26891]
[1721133253670,0.59183085,3429.1,3427.9,2.9172]
[1721133253671,2.91642,3428.9,3427.9,2.9172]
[1721133253990,2.97481352,3428.9,3427.9,2.9172]
[1721133254490,0.05839352,3428.9,3427.7,2.91733]
[1721133254713,6.13239352,3428.9,3427.4,2.91763]
[1721133254872,0.43398585,3428.8,3428.2,2.91696]
[1721133255194,0.43398585,3428.8,3427.6,2.2782]
[1721133255195,0.43398585,3428.8,3428.0,2.91712]
[1721133255492,0.43398585,3428.8,3428.1,2.91701]
[1721133256169,3.35045585,3428.8,3427.9,2.9172]
[1721133256367,0.05839352,3428.7,3427.2,10.21775]
[1721133256569,0.05839352,3428.7,3427.1,5.356]
[1721133256570,5.86483794,3428.6,3427.1,2.356]
[1721133256753,5.86483794,3428.6,3427.0,2.918]
[1721133256754,2.91726,3427.9,3427.0,2.918]
[1721133256960,0.05839352,3427.8,3427.0,2.918]
[1721133257257,2.91726,3427.9,3426.4,2.91848]
[1721133257258,2.9175,3427.6,3426.4,2.91848]
[1721133257461,2.91767,3427.4,3426.5,2.91835]
[1721133257695,2.91767,3427.4,3426.4,2.91848]
[1721133257696,0.29760635,3427.3,3426.6,2.91834]
[1721133257897,5.91723,3427.9,3426.7,2.91825]
[1721133258060,2.97579352,3427.8,3426.7,2.91825]
[1721133258260,4.39729634,3428.3,3427.0,2.91798]
[1721133258261,3.0,3427.7,3427.0,2.91798]
[1721133258556,2.91726,3427.9,3427.0,2.91798]
[1721133258754,3.0,3427.8,3427.0,2.91798]
[1721133259058,0.883443,3427.7,3427.0,2.91798]
[1721133259488,0.883443,3427.7,3426.9,2.91802]
[1721133260077,0.883443,3427.7,3427.0,2.91799]
[1721133260280,0.883443,3427.7,3427.1,2.91791]
[1721133260489,3.0,3428.1,3427.3,2.91771]
[1721133260690,3.18,3428.3,3427.3,2.91771]
[1721133260691,3.0,3428.2,3427.5,2.91753]
[1721133261358,3.18,3428.3,3427.8,2.91726]
[1721133261559,2.91653,3428.8,3427.8,2.91726]
[1721133261806,2.97492352,3428.8,3427.8,2.91726]
[1721133262023,0.86294056,3428.7,3427.8,2.91726]
[1721133262168,3.77951056,3428.7,3427.6,2.91745]
[1721133262374,3.99533408,3428.7,3427.4,2.91761]
[1721133262614,3.99533408,3428.7,3427.4,2.91765]
[1721133262615,2.91695,3428.3,3427.4,2.91765]
[1721133262773,0.05839352,3428.2,3427.2,2.91783]
[1721133263107,3.21465435,3428.1,3427.0,5.17214]
[1721133263302,0.05839352,3428.0,3427.1,2.91786]
[1721133263475,0.05839352,3428.0,3427.0,2.2542]
[1721133263677,3.05839352,3428.0,3426.7,2.9182]
[1721133263907,2.91742,3427.7,3426.8,2.91816]
[1721133264094,2.91731,3427.9,3427.0,2.91798]
[1721133264095,0.583473,3427.6,3427.0,2.91798]
[1721133264287,3.0,3427.8,3427.0,2.91798]
[1721133264484,0.05839352,3427.9,3427.0,2.91798]
[1721133264789,2.91737,3427.8,3427.0,2.91798]
[1721133265112,3.0,3427.7,3427.0,2.91798]
[1721133265404,3.0,3427.7,3427.1,2.91791]
[1721133265581,0.59172,3427.7,3427.1,2.91791]
[1721133265782,0.65011352,3427.7,3426.9,2.91806]
[1721133265989,3.59172,3427.7,3427.0,2.918]
[1721133267190,0.05839352,3427.6,3426.6,2.91833]
[1721133267396,2.91758,3427.5,3426.4,5.23816]
[1721133267589,2.91758,3427.5,3426.2,2.91865]
[1721133267590,0.05839352,3427.4,3426.2,2.91865]
[1721133267878,2.91788,3427.2,3426.3,2.91858]
[1721133268185,2.91802,3427.0,3426.1,2.91876]
[1721133268387,0.47827596,3426.9,3426.1,2.91876]
[1721133268799,0.47827596,3426.9,3426.2,2.91866]
[1721133268800,0.41988244,3426.9,3426.2,2.91866]
[1721133269308,3.33797244,3426.9,3426.0,2.91881]
[1721133269821,0.41988244,3426.9,3426.2,2.91867]
[1721133270022,2.91787,3427.2,3426.2,2.91867]
[1721133270023,2.91787,3427.2,3426.4,2.91851]
[1721133270207,0.36501135,3427.5,3426.7,2.9182]
[1721133270418,1.21729634,3428.1,3427.1,2.91784]
[1721133270598,3.18,3428.2,3427.3,2.91772]
[1721133270776,3.18,3428.2,3426.9,2.2712]
[1721133270777,3.18,3428.2,3427.5,2.91756]
[1721133270981,2.91672,3428.6,3427.8,2.91732]
[1721133271278,2.91679,3428.5,3427.5,2.9175]
[1721133271483,2.91679,3428.5,3427.7,2.9174]
[1721133271796,2.91682,3428.4,3427.3,2.91771]
[1721133272018,2.91704,3428.2,3427.3,2.91771]
[1721133272230,0.58922535,3428.1,3427.3,2.91771]
[1721133272732,0.58922535,3428.1,3427.1,2.91791]
[1721133272733,2.91715,3428.0,3427.1,2.91791]
[1721133272893,0.05839352,3427.9,3427.1,2.91791]
[1721133273091,0.58922535,3428.1,3427.2,2.9178]
[1721133273328,6.50630535,3428.1,3427.2,2.9178]
[1721133273647,3.0,3428.1,3427.3,2.91772]
[1721133273925,10.28653,3428.8,3427.8,2.91726]
[1721133273926,8.58815961,3428.8,3427.8,2.91726]
[1721133274227,2.91687,3428.4,3427.5,2.91756]
[1721133274429,3.0,3428.3,3427.5,2.91756]
[1721133274631,0.05839352,3428.2,3427.1,2.91788]
[1721133274833,2.91715,3428.0,3427.0,2.91793]
[1721133275031,0.05839352,3427.9,3427.0,2.91793]
[1721133275531,2.91715,3428.0,3427.0,2.91796]
[1721133275828,2.97554352,3428.0,3427.0,2.91796]
[1721133276031,2.97554352,3428.0,3426.9,2.2712]
[1721133276209,2.91733,3427.8,3426.9,2.91803]
[1721133276530,0.05839352,3427.7,3426.9,2.91803]
[1721133276826,0.05839352,3427.7,3427.0,2.918]
[1721133277029,4.44099537,3428.1,3427.1,2.9179]
[1721133277030,1.21815961,3428.1,3427.1,2.9179]
[1721133277228,4.44082537,3428.3,3427.1,2.9179]
[1721133277229,3.0,3428.0,3427.3,2.91774]
[1721133277456,3.0,3428.2,3427.3,0.583564]
[1721133277742,4.13491961,3428.5,3427.3,2.953764]
[1721133277962,1.21979807,3428.6,3427.7,2.91732]
[1721133278098,1.21979807,3428.6,3427.3,2.953764]
[1721133278302,7.37,3429.0,3428.3,2.91686]
[1721133278303,1.21979807,3428.9,3428.3,2.91686]
[1721133278539,7.37,3429.0,3428.4,2.91676]
[1721133278540,1.21979807,3429.0,3428.4,2.91676]
[1721133278701,1.21979807,3429.0,3427.7,2.91739]
[1721133278702,3.18,3429.2,3428.7,2.91652]
[1721133279030,0.05839352,3429.1,3427.9,2.4716]
[1721133279256,0.05839352,3429.1,3428.1,2.91701]
[1721133279257,2.91637,3429.0,3428.1,2.91701]
[1721133279549,0.05839352,3429.1,3428.0,2.91713]
[1721133279550,3.88191987,3428.9,3428.0,2.91713]
[1721133279750,2.9165,3428.8,3427.7,2.9174]
[1721133279915,0.05839352,3428.7,3427.7,2.9174]
[1721133280111,0.05839352,3428.7,3427.5,2.91756]
[1721133280112,2.97495352,3428.7,3427.5,2.9175]
[1721133280451,2.91673,3428.5,3427.5,2.9175]
[1721133280646,3.44472096,3428.4,3427.6,2.91749]
[1721133281056,2.91694,3428.3,3427.4,2.2886]
[1721133281349,2.91694,3428.3,3426.6,4.003]
[1721133281350,2.91714,3428.1,3427.0,2.91793]
[1721133281540,2.97559352,3428.0,3427.0,2.91793]
[1721133281853,2.9172,3428.0,3427.1,2.91789]
[1721133282062,2.91732,3427.8,3426.8,2.91813]
[1721133282264,3.05839352,3427.7,3426.8,2.91813]
[1721133282420,3.05839352,3427.7,3426.9,2.91807]
[1721133282620,3.05839352,3427.7,3426.7,2.3297]
[1721133282621,0.05839352,3427.7,3426.7,5.24788]
[1721133282841,3.05839352,3427.7,3426.7,5.24788]
[1721133283052,0.32366235,3427.6,3426.7,5.24788]
[1721133283267,0.05839352,3427.5,3426.7,2.91818]
[1721133283559,0.05839352,3427.5,3426.5,2.91842]
[1721133283560,4.19577159,3427.5,3426.5,2.91842]
[1721133283745,4.19577159,3427.5,3426.6,2.91833]
[1721133283918,0.46951744,3427.4,3426.6,2.91833]
[1721133284119,1.21979807,3428.0,3427.3,2.91774]
[1721133284435,1.21979807,3428.0,3426.1,6.92176]
[1721133284436,3.0,3428.0,3427.6,2.91748]
[1721133285220,3.0,3428.0,3427.2,2.91781]
[1721133285423,4.21979807,3428.0,3427.2,2.91781]
[1721133285656,1.21979807,3427.9,3427.2,2.91781]
[1721133285951,1.21979807,3427.9,3426.9,2.91808]
[1721133285952,4.13710807,3427.9,3426.9,2.91808]
[1721133286132,4.13710807,3427.9,3427.0,2.91798]
[1721133286133,1.21979807,3427.8,3427.0,2.91798]
[1721133286329,1.21979807,3427.8,3426.4,2.4365]
[1721133286540,1.21979807,3427.6,3426.7,2.91819]
[1721133286731,1.21979807,3427.4,3426.5,2.91839]
[1721133286931,2.97596352,3427.5,3426.5,2.91839]
[1721133286932,2.15034775,3427.3,3426.5,2.91839]
[1721133287152,4.19602159,3427.2,3425.9,2.91891]
[1721133287339,4.19602159,3427.2,3425.9,2.91893]
[1721133287340,2.91814,3426.9,3425.9,2.91893]
[1721133287538,0.05839352,3426.8,3425.9,2.91893]
[1721133287769,1.27819159,3426.8,3425.9,2.91893]
[1721133288077,0.50445763,3426.7,3425.9,2.91893]
[1721133288297,0.05839352,3426.6,3425.5,2.91925]
[1721133288583,1.21979807,3426.4,3425.5,2.91925]
[1721133288877,1.21979807,3426.3,3425.6,2.91919]
[1721133289052,4.69158797,3426.5,3425.6,2.91919]
[1721133289373,1.21979807,3426.3,3425.7,2.91911]
[1721133289539,1.71476445,3426.5,3425.7,2.91911]
[1721133289743,4.63319445,3426.5,3425.7,2.91911]
[1721133289943,1.21979807,3426.5,3425.7,2.91911]
[1721133290139,1.21979807,3426.6,3425.7,2.91911]
[1721133290450,1.21979807,3426.6,3425.5,2.91925]
[1721133290451,1.21979807,3426.5,3425.5,2.91925]
[1721133290642,1.21979807,3426.5,3425.6,2.91919]
[1721133290838,1.21979807,3426.6,3425.8,2.919]
[1721133291045,1.22137086,3426.6,3425.8,0.34275604]
[1721133291239,1.22137086,3426.8,3425.8,0.34275604]
[1721133291554,1.22137086,3426.7,3425.8,2.919]
[1721133291874,1.22137086,3426.7,3426.0,2.91885]
[1721133292253,1.22137086,3426.7,3425.8,2.919]
[1721133292455,1.22137086,3426.7,3425.9,2.91893]
[1721133292762,1.22137086,3426.6,3425.9,5.83786]
[1721133292973,4.44489358,3426.8,3426.0,0.583786]
[1721133292974,4.13955086,3426.8,3426.0,0.583786]
[1721133293138,4.13955086,3426.8,3426.0,2.91883]
[1721133293139,2.91818,3426.8,3426.0,2.91883]
[1721133293344,4.13931359,3426.8,3426.0,2.91883]
[1721133293576,4.13931359,3426.8,3425.8,2.91896]
[1721133293773,4.13931359,3426.8,3425.3,5.19008]
[1721133293774,4.13952359,3426.6,3425.5,2.91923]
[1721133294074,0.05839352,3426.5,3425.5,2.91923]
[1721133294379,0.57243341,3426.4,3425.6,2.91917]
[1721133295391,3.49094341,3426.4,3425.5,2.91927]
[1721133295588,3.49094341,3426.4,3425.3,5.19009]
[1721133295589,2.91866,3426.3,3425.3,5.19009]
[1721133295994,2.91866,3426.3,3425.5,2.91927]
[1721133296193,3.72284038,3426.3,3425.5,2.91927]
[1721133296701,3.72284038,3426.3,3425.3,5.19009]
[1721133297373,0.80418038,3426.3,3425.5,2.91922]
[1721133297576,4.13956359,3426.5,3425.6,2.91918]
[1721133297577,2.91843,3426.5,3425.6,2.91918]
[1721133297789,2.91859,3426.4,3425.6,2.91918]
[1721133298012,2.91861,3426.3,3425.6,2.91918]
[1721133298329,3.0,3426.9,3425.6,2.91918]
[1721133298330,4.13945359,3426.7,3425.8,2.91897]
[1721133298814,3.0,3426.6,3425.8,2.91901]
[1721133299498,5.91834,3426.6,3425.8,2.91901]
[1721133299701,3.0,3426.6,3425.9,2.91893]